bitfinex/quotes_BTCUSD_20251007
["timestamp","ask_amount","ask_price","bid_price","bid_amount"]
[1759850087963,0.4642906,121930.0,121920.0,0.0002]
[1759850088360,0.27917206,121930.0,121920.0,0.0002]
[1759850088589,0.4163806,121930.0,121920.0,0.0002]
[1759850088761,0.4163806,121930.0,121920.0,0.00326684]
[1759850088970,0.15701206,121930.0,121920.0,0.00326684]
[1759850089489,0.4163806,121930.0,121920.0,0.00326684]
[1759850089699,0.4642906,121930.0,121920.0,0.00326684]
[1759850089902,0.30026206,121930.0,121920.0,0.00326684]
[1759850090108,0.4642906,121930.0,121920.0,0.00326684]
[1759850090310,0.4432006,121930.0,121920.0,0.00326684]
[1759850090542,0.22600206,121930.0,121920.0,0.00326684]
[1759850090755,0.02715,121940.0,121920.0,0.21260883]
[1759850090973,0.02715,121950.0,121930.0,0.40838854]
[1759850091229,0.28646573,121970.0,121940.0,0.07201]
[1759850091435,0.28646573,121970.0,121930.0,0.40838738]
[1759850091436,0.14288,121950.0,121930.0,0.40838738]
[1759850091649,0.07389,121950.0,121940.0,0.16401508]
[1759850092097,0.07389,121950.0,121940.0,0.3296]
[1759850092314,0.13629206,121960.0,121940.0,0.49361508]
[1759850092516,0.13662206,121960.0,121940.0,0.53891508]
[1759850092737,0.08312206,121960.0,121940.0,0.56562508]
[1759850092949,0.20561206,121960.0,121940.0,0.53891508]
[1759850093160,0.17926206,121960.0,121940.0,0.53891508]
[1759850093457,0.11027206,121960.0,121940.0,0.53891508]
[1759850093706,0.274261,121960.0,121940.0,0.61891184]
[1759850094124,0.11027206,121960.0,121940.0,0.61891184]
[1759850094328,0.24116446,121970.0,121950.0,0.19071035]
[1759850094329,0.02715,121970.0,121950.0,0.19071035]
[1759850094534,0.08312206,121970.0,121940.0,0.31367955]
[1759850094753,0.07389,121960.0,121950.0,0.24436]
[1759850094973,0.36958681,121970.0,121950.0,0.3296]
[1759850095496,0.08312206,121970.0,121960.0,0.0453]
[1759850095998,0.02715,121980.0,121960.0,0.20928819]
[1759850096202,0.02715,121980.0,121950.0,0.08524]
[1759850096203,0.44314769,121970.0,121950.0,0.08524]
[1759850096324,0.12249,121960.0,121940.0,0.34]
[1759850096529,0.12249,121960.0,121950.0,0.32956]
[1759850096733,0.16923,121960.0,121950.0,0.49356164]
[1759850096941,0.07389,121960.0,121950.0,0.49356164]
[1759850097130,0.14288,121960.0,121950.0,0.40832164]
[1759850097337,0.07389,121960.0,121950.0,0.40832164]
[1759850098355,0.07389,121960.0,121950.0,0.32956]
[1759850098556,0.14288,121960.0,121950.0,0.32956]
[1759850099627,0.144,121960.0,121940.0,0.16401354]
[1759850099837,0.22546206,121960.0,121950.0,0.24432]
[1759850100052,0.25126206,121960.0,121950.0,0.24432]
[1759850100264,0.22577206,121960.0,121940.0,0.16401457]
[1759850100440,0.41525077,121960.0,121950.0,0.24432]
[1759850100657,0.15566206,121960.0,121950.0,0.24432]
[1759850101042,0.22577206,121960.0,121950.0,0.24432]
[1759850101271,0.41525173,121960.0,121930.0,0.08524]
[1759850101512,0.16401508,121940.0,121930.0,0.08524]
[1759850101731,0.29073714,121940.0,121930.0,0.24428]
[1759850101960,0.29073714,121940.0,121920.0,0.04832458]
[1759850101961,0.16402854,121930.0,121920.0,0.0002]
[1759850102206,0.3016906,121930.0,121920.0,0.24448]
[1759850102425,0.3707806,121930.0,121920.0,0.24448]
[1759850102677,0.4666906,121930.0,121920.0,0.00326684]
[1759850102886,0.4666906,121930.0,121920.0,0.24754684]
[1759850103343,0.4666906,121930.0,121920.0,0.00326684]
[1759850104335,0.47485378,121930.0,121920.0,0.00326684]
[1759850106344,1.69318483,121930.0,121920.0,0.00326684]
[1759850106553,1.12997678,121930.0,121920.0,0.00326684]
[1759850106733,0.81485378,121930.0,121920.0,0.00326684]
[1759850106930,0.47485378,121930.0,121920.0,0.00326684]
[1759850107395,0.30266206,121930.0,121920.0,0.00326684]
[1759850107576,0.4388206,121930.0,121920.0,0.00326684]
[1759850108175,0.4666306,121930.0,121920.0,0.06482684]
[1759850108383,1.4368102,121930.0,121920.0,0.00326684]
[1759850109236,1.55190715,121930.0,121920.0,0.00326684]
[1759850109471,1.53440915,121930.0,121920.0,0.00326684]
[1759850109897,0.47486915,121930.0,121920.0,0.00326684]
[1759850111788,0.44705915,121930.0,121920.0,0.00326684]
[1759850112408,0.47486915,121930.0,121920.0,0.00326684]
[1759850112617,1.2819172,121930.0,121920.0,0.00326684]
[1759850113004,0.47486915,121930.0,121920.0,0.00326684]
[1759850114287,0.44705915,121930.0,121920.0,0.00326684]
[1759850114755,0.4388206,121930.0,121920.0,0.00326684]
[1759850115059,0.4666306,121930.0,121920.0,0.00326684]
[1759850115904,0.7109106,121930.0,121920.0,0.00326684]
[1759850116559,0.4666306,121930.0,121920.0,0.00326684]
[1759850118327,1.15483865,121930.0,121920.0,0.00326684]
[1759850118610,2.17698265,121930.0,121920.0,0.00326684]
[1759850119492,1.1603146,121930.0,121920.0,0.00326684]
[1759850119809,1.1496256,121930.0,121920.0,0.00326684]
[1759850119995,1.3939056,121930.0,121920.0,0.00326684]
[1759850120297,2.42211365,121930.0,121920.0,0.00326684]
[1759850120663,2.44711365,121930.0,121920.0,0.00326684]
[1759850120866,2.54711365,121930.0,121920.0,1e-08]
[1759850121075,0.50405545,121910.0,121900.0,1e-08]
[1759850121368,4.23135951,121910.0,121900.0,1e-08]
[1759850121593,4.89482756,121910.0,121900.0,1e-08]
[1759850121909,4.85325056,121910.0,121900.0,1e-08]
[1759850122315,3.85782456,121910.0,121900.0,1e-08]
[1759850122722,3.61354456,121910.0,121900.0,1e-08]
[1759850122901,3.85782456,121910.0,121900.0,1e-08]
[1759850123076,3.88245432,121910.0,121900.0,1e-08]
[1759850123274,1.91285662,121910.0,121900.0,1e-08]
[1759850123497,2.15713662,121910.0,121900.0,1e-08]
[1759850123945,2.60106467,121910.0,121900.0,1e-08]
[1759850124158,2.84899667,121910.0,121900.0,1e-08]
[1759850124828,2.60471667,121910.0,121900.0,1e-08]
[1759850125069,1.07281062,121910.0,121900.0,1e-08]
[1759850125368,0.59414727,121910.0,121900.0,1e-08]
[1759850125604,0.71099751,121910.0,121900.0,1e-08]
[1759850126003,0.46671751,121910.0,121900.0,1e-08]
[1759850126215,0.41217751,121910.0,121900.0,1e-08]
[1759850126430,0.31657751,121910.0,121900.0,1e-08]
[1759850126831,0.38668751,121910.0,121900.0,0.00102271]
[1759850127037,0.22263206,121910.0,121900.0,0.00102271]
[1759850127246,0.41217751,121910.0,121900.0,0.00102271]
[1759850127451,0.43884751,121910.0,121900.0,0.00102271]
[1759850128694,0.24930206,121910.0,121900.0,0.00102271]
[1759850128911,0.12672206,121910.0,121900.0,0.00102271]
[1759850129107,0.08312206,121910.0,121900.0,0.16509161]
[1759850129312,0.0258,121920.0,121900.0,0.20974161]
[1759850129518,0.08312206,121920.0,121900.0,0.30063891]
[1759850129692,0.3607552,121920.0,121900.0,1e-08]
[1759850129916,0.06817,121910.0,121900.0,0.08528001]
[1759850130195,0.31534751,121910.0,121900.0,1e-08]
[1759850130395,0.31534751,121910.0,121900.0,0.24424001]
[1759850130667,0.15129206,121910.0,121900.0,1e-08]
[1759850130872,0.08312206,121910.0,121900.0,0.24424001]
[1759850131116,0.31534751,121910.0,121900.0,1e-08]
[1759850131320,0.40242751,121910.0,121900.0,0.24424001]
[1759850131521,0.40242751,121910.0,121900.0,1e-08]
[1759850131724,0.42878751,121910.0,121900.0,0.24424001]
[1759850131932,0.08312206,121910.0,121900.0,0.28681001]
[1759850132283,0.31534751,121910.0,121900.0,0.24424001]
[1759850132489,0.15129206,121910.0,121900.0,0.24424001]
[1759850132924,0.31534751,121910.0,121900.0,0.24424001]
[1759850133124,0.12478206,121910.0,121900.0,0.24424001]
[1759850133324,0.08312206,121910.0,121900.0,0.40830891]
[1759850133507,0.08312206,121910.0,121900.0,0.28681001]
[1759850133905,0.16404318,121920.0,121900.0,0.47692891]
[1759850134124,0.06817,121910.0,121900.0,0.08528001]
[1759850134304,0.40242751,121910.0,121900.0,0.26995659]
[1759850134641,0.23837206,121910.0,121900.0,0.24420001]
[1759850134841,0.15129206,121910.0,121900.0,0.24420001]
[1759850135008,0.15129206,121910.0,121900.0,1e-08]
[1759850135191,0.15129206,121910.0,121900.0,0.24522271]
[1759850135411,0.31534751,121910.0,121900.0,0.24522271]
[1759850135791,0.26180622,121930.0,121900.0,0.13218271]
[1759850135995,0.3607546,121920.0,121900.0,0.53611787]
[1759850136372,0.10963206,121920.0,121900.0,0.53611787]
[1759850136572,0.27367451,121920.0,121900.0,0.53611787]
[1759850137126,0.33424451,121920.0,121910.0,0.2442]
[1759850137328,0.40241451,121920.0,121910.0,0.2442]
[1759850137571,0.15129206,121920.0,121910.0,0.2442]
[1759850137744,0.37754405,121920.0,121910.0,0.2442]
[1759850137927,0.15129206,121920.0,121910.0,0.2442]
[1759850138153,0.0008557,121930.0,121910.0,0.47687087]
[1759850138493,0.08397776,121930.0,121920.0,0.16404199]
[1759850138706,0.24800681,121930.0,121910.0,0.31673617]
[1759850138834,0.36782405,121920.0,121900.0,1e-08]
[1759850139033,0.08312206,121920.0,121910.0,0.24416]
[1759850139281,0.08312206,121920.0,121910.0,0.28884]
[1759850139481,0.08312206,121920.0,121910.0,0.45289545]
[1759850139657,0.29374609,121930.0,121910.0,0.45289545]
[1759850139658,0.0948757,121930.0,121910.0,0.45289545]
[1759850139858,0.27455697,121930.0,121910.0,0.5265982]
[1759850140086,0.27455697,121930.0,121910.0,0.45289545]
[1759850140483,0.11052776,121930.0,121910.0,0.45289545]
[1759850140686,0.34202818,121930.0,121920.0,0.24416]
[1759850140911,0.15594776,121930.0,121920.0,0.24416]
[1759850141091,0.08397776,121930.0,121920.0,0.28884]
[1759850141299,0.12939776,121930.0,121920.0,0.29797747]
[1759850141508,0.12939776,121930.0,121920.0,0.45288199]
[1759850141509,0.0008557,121930.0,121920.0,0.45288199]
[1759850141844,0.0008557,121930.0,121920.0,0.28884]
[1759850142004,0.0462757,121930.0,121920.0,0.24412]
[1759850142205,0.0008557,121930.0,121920.0,0.53812199]
[1759850142970,0.0008557,121930.0,121920.0,0.60118199]
[1759850144165,0.0008557,121930.0,121920.0,0.2888]
[1759850144498,0.0008557,121930.0,121920.0,0.20872199]
[1759850144709,0.0008557,121930.0,121920.0,0.53808199]
[1759850145278,0.3608963,121930.0,121910.0,0.0005113]
[1759850145474,0.3608963,121930.0,121920.0,0.24408]
[1759850145768,0.2934263,121930.0,121920.0,0.24408]
[1759850146084,0.0008557,121930.0,121920.0,0.45280199]
[1759850146294,0.0008557,121930.0,121920.0,0.28876]
[1759850146470,0.0462757,121930.0,121920.0,0.24408]
[1759850146675,0.0008557,121930.0,121920.0,0.28876]
[1759850147086,0.0008557,121930.0,121920.0,0.51586199]
[1759850148639,0.0008557,121930.0,121920.0,0.85586199]
[1759850149086,0.0008557,121930.0,121920.0,0.61178199]
[1759850149611,0.0008557,121930.0,121920.0,0.94214199]
[1759850150359,0.0008557,121930.0,121910.0,0.0005113]
[1759850150360,0.1137457,121930.0,121910.0,0.0005113]
[1759850150556,0.0462757,121930.0,121920.0,0.49332199]
[1759850150779,0.0008557,121930.0,121920.0,0.64940368]
[1759850151561,0.0008557,121930.0,121920.0,0.32012368]
[1759850151767,0.0008557,121930.0,121920.0,0.64940368]
[1759850152388,0.0008557,121930.0,121920.0,0.58634368]
[1759850152742,0.0008557,121930.0,121920.0,0.60106199]
[1759850152943,0.0008557,121930.0,121920.0,0.27178199]
[1759850153153,0.0008557,121930.0,121920.0,0.20872199]
[1759850153349,0.0008557,121930.0,121920.0,0.53796199]
[1759850153899,0.0462757,121930.0,121910.0,0.16456563]
[1759850154239,0.06747,121920.0,121910.0,0.03419499]
[1759850154420,0.06747,121920.0,121910.0,0.36343499]
[1759850154421,0.11289,121920.0,121910.0,0.36343499]
[1759850154623,0.11289,121920.0,121910.0,0.03419499]
[1759850155029,0.11289,121920.0,121910.0,0.0005113]
[1759850155030,0.36005405,121920.0,121910.0,0.0005113]
[1759850155179,0.19601206,121920.0,121910.0,0.40856675]
[1759850155380,0.0008557,121930.0,121910.0,0.45324675]
[1759850155618,0.31547689,121930.0,121920.0,0.244]
[1759850155822,0.36089689,121930.0,121920.0,0.244]
[1759850156022,0.08397776,121930.0,121920.0,0.45272199]
[1759850156472,0.0008557,121930.0,121920.0,0.51578199]
[1759850156804,0.0008557,121930.0,121920.0,0.85578199]
[1759850157879,1e-08,121930.0,121920.0,1.44146405]
[1759850158079,1e-08,121930.0,121920.0,1.98750085]
[1759850158448,1e-08,121930.0,121920.0,2.41367381]
[1759850160351,0.06546099,122000.0,121990.0,0.50394786]
[1759850160576,9.35e-05,122000.0,121990.0,1.25722992]
[1759850160775,9.35e-05,122000.0,121990.0,1.44009672]
[1759850161032,9.35e-05,122000.0,121990.0,1.35485672]
[1759850161237,0.22927572,122020.0,121990.0,0.63295205]
[1759850161450,0.22992209,122010.0,122000.0,0.24392]
[1759850161644,0.35662415,122010.0,122000.0,0.24392]
[1759850161873,0.29882019,122010.0,121990.0,0.08524]
[1759850162084,0.22993668,122000.0,121980.0,0.34]
[1759850162256,0.04358,121990.0,121980.0,0.35248838]
[1759850162455,0.20752786,121990.0,121980.0,0.68160838]
[1759850162664,0.17211813,122010.0,121980.0,0.95663774]
[1759850162858,0.25524019,122010.0,121990.0,0.1639471]
[1759850163109,0.25524019,122010.0,122000.0,0.24388]
[1759850163742,0.08312206,122010.0,122000.0,0.24388]
[1759850164181,0.08312206,122010.0,122000.0,0.49305442]
[1759850164419,0.23808963,122030.0,122000.0,0.49305442]
[1759850164628,0.24703074,122020.0,122000.0,0.4499268]
[1759850164843,0.31303074,122020.0,122000.0,0.0799968]
[1759850165049,0.10958,122010.0,121990.0,0.24918757]
[1759850165279,0.08312206,122000.0,121980.0,0.35248838]
[1759850165494,0.24705813,122000.0,121990.0,0.24384]
[1759850165724,0.14912206,122000.0,121990.0,0.24384]
[1759850165971,0.19270206,122000.0,121990.0,0.24384]
[1759850166195,0.35663648,122000.0,121980.0,0.34]
[1759850166423,0.29063648,122000.0,121990.0,0.24384]
[1759850166650,0.16394818,121990.0,121960.0,0.17214895]
[1759850166885,0.24708416,121980.0,121970.0,0.24384]
[1759850167149,0.19270206,121980.0,121970.0,0.24384]
[1759850167380,0.35666336,121980.0,121970.0,0.2438]
[1759850167599,0.02460503,122000.0,121970.0,0.34667]
[1759850167842,0.08312206,122000.0,121990.0,0.16393723]
[1759850168032,0.26270527,122020.0,121990.0,0.53374723]
[1759850168254,0.31304396,122010.0,121990.0,0.49293723]
[1759850168465,0.14912206,122010.0,121990.0,0.57293403]
[1759850168898,0.13912206,122010.0,121990.0,0.57293403]
[1759850169113,0.07312206,122010.0,121990.0,0.57293403]
[1759850169790,0.09889206,122010.0,121990.0,0.57293403]
[1759850170020,0.09889206,122010.0,121990.0,0.59830403]
[1759850170249,0.07312206,122010.0,122000.0,0.16393442]
[1759850170397,0.07312206,122010.0,122000.0,0.0799968]
[1759850170612,0.09889206,122010.0,122000.0,0.0799968]
[1759850171022,0.14247206,122010.0,122000.0,0.0799968]
[1759850171434,0.30639305,122010.0,122000.0,0.0799968]
[1759850171612,0.23395206,122010.0,122000.0,0.40769442]
[1759850171958,0.23395206,122010.0,122000.0,0.24376]
[1759850172159,0.20847206,122010.0,122000.0,0.24376]
[1759850172359,0.14247206,122010.0,122000.0,0.40769442]
[1759850172563,0.27997467,122030.0,122010.0,0.1639176]
[1759850172564,0.02577,122020.0,122010.0,0.1639176]
[1759850172773,0.28114769,122030.0,122010.0,0.16392099]
[1759850172976,0.10889206,122030.0,122020.0,0.40766755]
[1759850173188,0.05036761,122040.0,122030.0,0.16389412]
[1759850173435,0.09394761,122040.0,122020.0,0.22106594]
[1759850173787,0.17249718,122060.0,122030.0,0.44846412]
[1759850174011,0.27314696,122060.0,122030.0,0.32739882]
[1759850174234,0.25563817,122050.0,122040.0,0.24376]
[1759850174483,0.23321817,122050.0,122040.0,0.24376]
[1759850174713,0.06935,122050.0,122040.0,0.24376]
[1759850174913,0.23321726,122050.0,122040.0,0.24376]
[1759850175321,0.10929206,122060.0,122040.0,0.44844942]
[1759850175546,0.08352206,122060.0,122040.0,0.61120024]
[1759850175756,0.10929206,122060.0,122040.0,0.61120024]
[1759850175959,0.27314626,122060.0,122040.0,0.52377024]
[1759850176309,0.27314626,122060.0,122040.0,0.54914134]
[1759850176514,0.0004,122060.0,122040.0,0.61120134]
[1759850176719,0.0004,122060.0,122050.0,0.18923726]
[1759850176920,0.0004,122060.0,122050.0,0.32530512]
[1759850177120,0.0004,122060.0,122050.0,0.36611512]
[1759850177302,0.00703838,122060.0,122050.0,0.70611512]
[1759850177501,0.00703838,122060.0,122050.0,0.73318512]
[1759850177867,0.00703838,122060.0,122050.0,0.48018786]
[1759850178077,0.00703838,122060.0,122050.0,0.94756512]
[1759850178411,0.00703838,122060.0,122050.0,0.45481786]
[1759850178617,0.00703838,122060.0,122050.0,0.94756512]
[1759850179853,0.00703838,122060.0,122050.0,0.61868512]
[1759850180136,0.00703838,122060.0,122050.0,0.90671512]
[1759850180364,0.00703838,122060.0,122050.0,0.94752512]
[1759850180570,0.00703838,122060.0,122050.0,1.06202512]
[1759850180777,0.00703838,122060.0,122050.0,0.73318512]
[1759850180983,0.00703838,122060.0,122050.0,0.70611512]
[1759850181183,0.00703838,122060.0,122050.0,1.40274512]
[1759850181497,0.00703838,122060.0,122050.0,1.51882376]
[1759850182322,0.00703838,122060.0,122050.0,1.52899376]
[1759850182522,0.00703838,122060.0,122050.0,1.10303376]
[1759850182722,0.00703838,122060.0,122050.0,1.70181376]
[1759850184081,0.00703838,122060.0,122050.0,1.11541176]
[1759850184240,0.00703838,122060.0,122050.0,1.70269376]
[1759850184879,0.00703838,122060.0,122050.0,1.52891376]
[1759850185222,0.00703838,122060.0,122050.0,1.64528076]
[1759850185811,0.00262514,122060.0,122050.0,1.64528076]
[1759850186635,0.00262514,122060.0,122050.0,1.63499076]
[1759850186792,0.00262514,122060.0,122050.0,1.65999076]
[1759850187021,0.00262514,122060.0,122050.0,1.66799076]
[1759850188082,0.00262514,122060.0,122050.0,0.99863076]
[1759850188323,0.00262514,122060.0,122050.0,2.07031276]
[1759850188528,0.00262514,122060.0,122050.0,2.07831276]
[1759850189283,0.00262514,122060.0,122050.0,1.65243276]
[1759850189505,0.00262514,122060.0,122050.0,2.07827276]
[1759850190332,0.0004,122110.0,122100.0,0.50380016]
[1759850190577,0.0004,122110.0,122100.0,1.37319153]
[1759850191316,0.0004,122110.0,122100.0,1.48167359]
[1759850191513,0.0004,122110.0,122100.0,1.50725359]
[1759850191771,0.0004,122110.0,122100.0,1.48167359]
[1759850191986,0.0004,122110.0,122100.0,0.81239359]
[1759850192186,0.0004,122110.0,122100.0,0.94735153]
[1759850192399,0.0004,122110.0,122100.0,0.70391153]
[1759850192636,0.0004,122110.0,122100.0,0.85662153]
[1759850192864,0.0004,122110.0,122100.0,1.28242153]
[1759850193164,0.0004,122110.0,122100.0,1.30795153]
[1759850193578,0.0004,122110.0,122100.0,1.37307153]
[1759850193793,0.0004,122110.0,122100.0,1.39843153]
[1759850193998,0.0004,122110.0,122100.0,1.48155359]
[1759850194747,0.0004,122110.0,122100.0,1.48151359]
[1759850195171,0.0004,122110.0,122100.0,1.73359359]
[1759850195391,0.0004,122110.0,122100.0,1.66677359]
[1759850195609,0.0004,122110.0,122100.0,1.51577359]
[1759850196030,0.00295082,122110.0,122100.0,1.51577359]
[1759850196635,0.00295082,122110.0,122100.0,1.60090897]
[1759850196852,0.00295082,122110.0,122100.0,2.29077997]
[1759850197019,0.00295082,122110.0,122100.0,1.79007497]
[1759850197171,0.00295082,122110.0,122100.0,1.12095497]
[1759850197411,0.00295082,122110.0,122100.0,1.74319897]
[1759850197623,0.00295082,122110.0,122100.0,0.89810897]
[1759850197844,0.00295082,122110.0,122100.0,1.54156897]
[1759850198768,0.00295082,122110.0,122100.0,1.56657897]
[1759850198975,0.00295082,122110.0,122100.0,2.03551797]
[1759850199884,0.00295082,122110.0,122100.0,2.04421797]
[1759850200065,0.00295082,122110.0,122100.0,2.06921797]
[1759850200629,0.0004,122120.0,122110.0,0.50378674]
[1759850200818,0.0004,122120.0,122110.0,0.81144803]
[1759850201016,0.0004,122120.0,122110.0,0.85433803]
[1759850201298,0.0004,122120.0,122110.0,1.98986103]
[1759850201506,1e-08,122120.0,122110.0,1.98986103]
[1759850202291,1e-08,122140.0,122130.0,0.52875992]
[1759850202530,1e-08,122140.0,122130.0,1.7798158]
[1759850202746,1e-08,122140.0,122130.0,1.9691558]
[1759850203364,1e-08,122140.0,122130.0,1.8945118]
[1759850203578,1e-08,122140.0,122130.0,2.0129688]
[1759850203790,1e-08,122140.0,122130.0,1.93601685]
[1759850204014,1e-08,122140.0,122130.0,1.83544085]
[1759850204435,1e-08,122140.0,122130.0,1.49492085]
[1759850204835,1e-08,122140.0,122130.0,1.47045085]
[1759850205102,1e-08,122140.0,122130.0,1.49492085]
[1759850206393,1e-08,122140.0,122130.0,1.51993085]
[1759850206598,1e-08,122140.0,122130.0,1.49492085]
[1759850206784,0.00152981,122140.0,122130.0,1.49492085]
[1759850210553,0.00152981,122140.0,122130.0,1.51993085]
[1759850210758,0.00152981,122140.0,122130.0,2.02634385]
[1759850210963,0.0004,122150.0,122140.0,0.50374652]
[1759850211292,0.0004,122150.0,122140.0,1.04178644]
[1759850211516,0.0004,122150.0,122140.0,1.08467644]
[1759850212889,1e-08,122150.0,122140.0,1.17005612]
[1759850213049,1e-08,122150.0,122140.0,1.11108912]
[1759850213260,1e-08,122150.0,122140.0,2.11857812]
[1759850213491,1e-08,122150.0,122140.0,1.46040612]
[1759850213733,1e-08,122150.0,122140.0,1.54548612]
[1759850213971,1e-08,122150.0,122140.0,0.87688612]
[1759850214188,1e-08,122150.0,122140.0,1.84762112]
[1759850214611,1e-08,122150.0,122140.0,1.54548612]
[1759850216135,1e-08,122150.0,122140.0,1.43593612]
[1759850216385,1e-08,122150.0,122140.0,1.54548612]
[1759850216587,1e-08,122150.0,122140.0,0.85241612]
[1759850216787,0.00050984,122150.0,122140.0,1.43585612]
[1759850216943,0.00050984,122150.0,122140.0,1.52093612]
[1759850217161,0.00050984,122150.0,122140.0,1.54540612]
[1759850220134,0.00050984,122150.0,122140.0,0.85241612]
[1759850220316,0.00050984,122150.0,122140.0,1.51972612]
[1759850220521,0.00050984,122150.0,122140.0,1.54475612]
[1759850220925,0.00050984,122150.0,122140.0,2.10084212]
[1759850221163,1e-08,122150.0,122140.0,2.10956212]
[1759850221381,1e-08,122150.0,122140.0,2.13728264]
[1759850221831,1e-08,122150.0,122140.0,2.23728264]
[1759850222050,0.0004,122180.0,122170.0,0.50370631]
[1759850222277,0.0004,122180.0,122170.0,1.75080288]
[1759850222491,1e-08,122180.0,122170.0,1.96467979]
[1759850222705,1e-08,122180.0,122170.0,1.96200597]
[1759850223316,1e-08,122180.0,122170.0,2.06200597]
[1759850223542,1e-08,122180.0,122170.0,2.06467979]
[1759850223767,1e-08,122180.0,122170.0,2.06200597]
[1759850223981,1e-08,122210.0,122200.0,0.52866612]
[1759850224269,1e-08,122210.0,122200.0,5.53526757]
[1759850224470,1e-08,122210.0,122200.0,5.40377857]
[1759850224874,1e-08,122210.0,122200.0,2.73543857]
[1759850225088,1e-08,122210.0,122200.0,2.44044757]
[1759850225310,1e-08,122210.0,122200.0,2.54044757]
[1759850225514,0.0004,122240.0,122230.0,0.50362595]
[1759850225646,0.00055054,122240.0,122230.0,0.89893338]
[1759850225863,0.0004935,122250.0,122240.0,0.50361256]
[1759850226078,0.0004935,122250.0,122240.0,2.18283727]
[1759850226291,0.0004935,122250.0,122240.0,1.38210207]
[1759850226708,1e-08,122250.0,122240.0,1.41533894]
[1759850226943,0.00817527,122320.0,122290.0,0.16353693]
[1759850227141,0.00817527,122320.0,122300.0,0.24296]
[1759850227142,0.24664098,122310.0,122300.0,0.24296]
[1759850227344,0.12630206,122310.0,122300.0,0.24296]
[1759850227565,0.19097206,122310.0,122300.0,0.24296]
[1759850227816,0.12630206,122310.0,122300.0,0.24296]
[1759850228053,0.12630206,122310.0,122300.0,0.40649229]
[1759850228270,0.08312206,122310.0,122300.0,0.47535256]
[1759850228492,0.18818626,122340.0,122310.0,0.16351892]
[1759850228493,0.2281627,122330.0,122310.0,0.16351892]
[1759850228706,0.04318,122310.0,122300.0,0.66584917]
[1759850228919,0.37911098,122310.0,122290.0,0.03352554]
[1759850229133,0.29688892,122310.0,122300.0,0.24288]
[1759850229346,0.21559206,122310.0,122300.0,0.24288]
[1759850229502,0.37911098,122310.0,122300.0,0.24288]
[1759850229711,0.19097206,122310.0,122300.0,0.45040729]
[1759850230112,0.19759009,122310.0,122300.0,0.45040729]
[1759850230312,0.00661803,122310.0,122300.0,0.45040729]
[1759850230550,0.04979803,122310.0,122300.0,0.043995]
[1759850230784,0.19759009,122310.0,122300.0,0.043995]
[1759850230941,0.19759009,122310.0,122300.0,0.49141229]
[1759850231145,0.13292009,122310.0,122300.0,0.49141229]
[1759850231369,0.13292009,122310.0,122300.0,0.32788]
[1759850232206,0.13292009,122310.0,122300.0,0.24284]
[1759850232207,0.19759009,122310.0,122300.0,0.24284]
[1759850232414,0.19759009,122310.0,122300.0,0.57140909]
[1759850232630,0.04979803,122310.0,122300.0,0.57140909]
[1759850232853,0.00661803,122310.0,122300.0,0.61303909]
[1759850233216,0.00661803,122310.0,122300.0,0.67595909]
[1759850233452,0.00661803,122310.0,122300.0,0.61303909]
[1759850233771,0.11446803,122310.0,122300.0,0.24352909]
[1759850233977,0.11446803,122310.0,122300.0,0.57128909]
[1759850234183,0.11446803,122310.0,122300.0,0.49129229]
[1759850234494,0.19759009,122310.0,122290.0,0.50354448]
[1759850234703,0.20669892,122310.0,122300.0,0.24276]
[1759850235051,0.28982098,122310.0,122300.0,0.29189045]
[1759850235256,0.19097206,122310.0,122300.0,0.29189045]
[1759850235577,0.19759009,122310.0,122300.0,0.45542274]
[1759850235776,0.13292009,122310.0,122300.0,0.45542274]
[1759850235978,0.19759009,122310.0,122300.0,0.45542274]
[1759850236185,0.00661803,122310.0,122300.0,0.45542274]
[1759850236397,0.00661803,122310.0,122300.0,0.49752482]
[1759850236606,0.00661803,122310.0,122300.0,0.44839437]
[1759850236775,0.00661803,122310.0,122300.0,0.40676437]
[1759850237203,0.11446803,122310.0,122300.0,0.24323208]
[1759850237404,0.04979803,122310.0,122300.0,0.49172437]
[1759850237601,0.11446803,122310.0,122300.0,0.16400437]
[1759850237831,0.88300012,122310.0,122300.0,0.00047208]
[1759850238014,0.19759009,122310.0,122300.0,0.40672437]
[1759850239181,0.13292009,122310.0,122300.0,0.40672437]
[1759850239414,0.04979803,122310.0,122300.0,0.47225071]
[1759850239646,0.00661803,122310.0,122300.0,0.47225071]
[1759850239796,0.00661803,122310.0,122300.0,0.91680071]
[1759850239995,0.04979803,122310.0,122300.0,0.89721071]
[1759850240399,0.00661803,122310.0,122300.0,0.93884071]
[1759850240776,0.04979803,122310.0,122300.0,0.89721071]
[1759850240981,0.04979803,122310.0,122300.0,0.65453071]
[1759850241183,0.04979803,122310.0,122300.0,0.89721071]
[1759850241429,0.19759009,122310.0,122300.0,0.24900437]
[1759850241772,0.19759009,122310.0,122300.0,0.49168437]
[1759850242321,0.13292009,122310.0,122300.0,0.49168437]
[1759850242673,0.00661803,122310.0,122300.0,0.53331437]
[1759850243581,0.00661803,122310.0,122300.0,0.59623437]
[1759850243734,0.04979803,122310.0,122300.0,0.40664437]
[1759850243944,0.04979803,122310.0,122300.0,0.49164437]
[1759850244458,0.04979803,122310.0,122300.0,0.16400437]
[1759850244783,0.04979803,122310.0,122300.0,0.49164437]
[1759850244985,0.00661803,122310.0,122300.0,0.61327117]
[1759850245216,0.00661803,122310.0,122300.0,0.67619117]
[1759850245390,0.00661803,122310.0,122300.0,1.01619117]
[1759850245751,0.00661803,122310.0,122300.0,0.95327117]
[1759850245930,0.04979803,122310.0,122300.0,0.91164117]
[1759850246131,0.00661803,122310.0,122300.0,0.95327117]
[1759850246392,0.00661803,122310.0,122300.0,0.62563117]
[1759850246690,0.04979803,122310.0,122300.0,1.25160117]
[1759850246927,0.04979803,122310.0,122300.0,0.58400117]
[1759850247133,0.04979803,122310.0,122300.0,0.82660117]
[1759850247336,0.11446803,122310.0,122300.0,0.91160117]
[1759850247495,0.04979803,122310.0,122300.0,0.91160117]
[1759850248601,0.00661803,122310.0,122300.0,0.91160117]
[1759850249029,0.00661803,122310.0,122300.0,0.95323117]
[1759850249243,0.00661803,122310.0,122300.0,0.62563117]
[1759850249474,0.00661803,122310.0,122300.0,1.29319117]
[1759850251061,0.19583009,122310.0,122300.0,0.16400437]
[1759850251422,0.19583009,122310.0,122300.0,0.49156437]
[1759850251826,0.00661803,122310.0,122300.0,0.53102437]
[1759850253543,0.00661803,122310.0,122300.0,0.93537437]
[1759850253668,0.00661803,122310.0,122300.0,1.01537117]
[1759850254310,0.00661803,122310.0,122300.0,0.95102117]
[1759850254691,0.04794803,122310.0,122300.0,1.25144117]
[1759850254942,0.00661803,122310.0,122300.0,1.29090117]
[1759850255307,0.00661803,122310.0,122300.0,1.29915199]
[1759850255736,0.04794803,122310.0,122300.0,0.58400117]